[Event "44th Chess Olympiad Open 2022"]
[Site "Chennai"]
[Date "2022.07.30"]
[Round "2.61"]
[White "Shaw, Jaden"]
[Black "Righi, Ezio"]
[Result "1-0"]
[ECO "B22"]
[WhiteElo "1930"]
[BlackElo "1912"]
[Annotator "TA"]
[PlyCount "53"]
[EventDate "2022.07.29"]
[EventType "team-tourn"]
[EventCountry "IND"]
[SourceTitle "playchess.com"]
[Source "ChessBase"]
[SourceQuality "1"]
[WhiteTeam "Jamaica"]
[BlackTeam "San Marino"]
[WhiteTeamCountry "JAM"]
[BlackTeamCountry "SMR"]
[TimeControl "40/5400+30:1800+30"]

{[%evp 13,53,10,29,20,62,43,62,35,35,27,34,-45,-38,-51,0,-18,11,14,11,5,93,102,94,99,98,88,86,57,114,85,98,92,97,81,401,395,366,385,706,678,868,864]} 1. e4 {[%emt 0:00:02]} c5 {[%emt 0:00:09]} 2. Nf3 {[%emt 0:00:06]} e6 {[%emt 0:00:12]} 3. c3 {[%emt 0:00:42]} Nf6 {[%emt 0:00:29]} 4. e5 {[%emt 0:00:57]} Nd5 {[%emt 0:00:19]} 5. d4 {[%emt 0:00:49]} cxd4 {[%emt 0:00:20]} 6. cxd4 {[%emt 0:00:06]} d6 {[%emt 0:00:21]} 7. Bd3 {[%emt 0:01:02]} Nc6 {[%emt 0:00:47]} 8. O-O {[%emt 0:00:49] B22: Sicilian: 2 c3.} Qc7 {[%emt 0:01:13][%cal Rd6e5]} 9. Re1 {[%emt 0:02:16]} Bd7 {[%emt 0:06:19] [#]} 10. Bg5 $146 {[%emt 0:02:15] White is slightly better.} ({Predecessor:} 10. Nc3 Nxc3 11. bxc3 dxe5 12. d5 exd5 13. Nxe5 Nxe5 14. f4 Bc5+ 15. Kh1 O-O 16. Rxe5 Bd6 17. Rxd5 Qxc3 18. Be3 Bg4 19. Bd4 Qxd4 20. Bxh7+ {1-0 (20) Fariz,S-Rago,R Kuala Lumpur 2001}) 10... h6 {[%emt 0:01:37]} 11. Bh4 {[%emt 0:01:08]} dxe5 {[%emt 0:09:36]} 12. Nxe5 {[%emt 0:02:10]} (12. Bg3 $14) 12... Nxe5 $15 {[%emt 0:00:43]} 13. dxe5 {[%emt 0:01:00]} Bb4 {[%emt 0:05:45]} (13... g5 $5 14. Bg3 h5 $11) 14. Nd2 {[%emt 0:05:57]} Rc8 {[%emt 0:01:42]} 15. a3 {[%emt 0:01:49]} Bxd2 {[%emt 0:02:22]} 16. Qxd2 {[%emt 0:00:46]} O-O {[%emt 0:00:55] [#]} (16... Qb6 $11) 17. Re4 $1 $16 {[%emt 0:02:13][%cal Oh4f6,Be1e4,Be4c4,Bc4d4,Bd4d5,Bd5d1][%mdl 32]} f5 {[%emt 0:16:22]} 18. exf6 $1 {[%emt 0:02:09]} Nxf6 {[%emt 0:00:07]} 19. Rc4 {[%emt 0:01:27]} Bc6 {[%emt 0:06:05]} 20. Re1 {[%emt 0:04:09]} Qf7 {[%emt 0:06:26]} (20... Rcd8 $1 $14) 21. Bb1 {[%emt 0:09:03]} Bd5 {[%emt 0:02:01]} 22. Rd4 {[%emt 0:02:38] White is more active.} Rc6 {[%emt 0:09:56]} 23. Qd3 {[%emt 0:02:54]} Qc7 $2 {[%emt 0:01:38][%mdl 8192] Loses the game.} (23... g5 $16 {is tougher.}) 24. Bxf6 $18 {[%emt 0:02:47]} Rxf6 {[%emt 0:00:49]} 25. Qh7+ {[%emt 0:00:12]} Kf8 $2 {[%emt 0:03:03] [#]} (25... Kf7 26. Rg4 Kf8) 26. Rxd5 $1 {[%emt 0:02:26][%mdl 512]} Rc1 {[%emt 0:01:05][%cal Rc1e1]} (26... Kf7 27. Be4) 27. Rdd1 {[%emt 0:00:42] Weighted Error Value: White=0.14 (very precise) /Black=0.64} 1-0

[Event "44th Chess Olympiad Open 2022"]
[Site "Chennai"]
[Date "2022.07.30"]
[Round "2.61"]
[White "Herrera, Adrian"]
[Black "Lorne, Ras Malaku"]
[Result "0-1"]
[ECO "A36"]
[WhiteElo "1563"]
[BlackElo "2079"]
[Annotator "TA"]
[PlyCount "90"]
[EventDate "2022.07.29"]
[EventType "team-tourn"]
[EventCountry "IND"]
[SourceTitle "playchess.com"]
[Source "ChessBase"]
[SourceQuality "1"]
[WhiteTeam "San Marino"]
[BlackTeam "Jamaica"]
[WhiteTeamCountry "SMR"]
[BlackTeamCountry "JAM"]
[TimeControl "40/5400+30:1800+30"]

{[%evp 12,90,14,17,32,12,17,0,0,0,0,0,0,0,0,0,2,-9,-9,-44,-47,-49,-40,-48,-18,-27,0,0,12,7,0,-9,-11,-18,-26,-22,-24,-18,10,0,0,-13,0,0,0,-38,-27,-27,-26,-46,-5,-37,-44,-147,-154,-129,0,-127,-8,-111,0,-162,-171,-586,-579,-715,-681,-746,-740,-1293,-1420,-1835,-1197,-1647,-1846,-1651,-1476,-29994,-29995,-29995,-29996]} 1. c4 {[%emt 0:00:04]} c5 {[%emt 0:00:35]} 2. Nc3 {[%emt 0:00:18]} Nc6 {[%emt 0:00:22]} 3. g3 {[%emt 0:00:36]} g6 {[%emt 0:00:17]} 4. Bg2 {[%emt 0:00:16]} Bg7 {[%emt 0:00:10]} 5. e3 {[%emt 0:01:23]} e5 {[%emt 0:00:41]} 6. Nge2 {[%emt 0:05:13]} Nge7 {[%emt 0:01:00]} 7. a3 {[%emt 0:02:22]} a5 {[%emt 0:08:37] A36: Symmetrical English vs ...g6: 4 Bg2 Bg7.} 8. d3 {[%emt 0:04:16]} d6 {[%emt 0:02:50] [#]} 9. Nd5 $146 {[%emt 0:03:32]} ({Predecessor:} 9. Nb5 O-O 10. Nec3 f5 11. Bd2 Kh8 12. Rb1 Be6 13. Nd5 Bg8 14. O-O Nxd5 15. cxd5 {0-1 (37) Ponomariov,R (2735)-Radjabov,T (2792) Eilat 2012}) 9... Nxd5 {[%emt 0:12:09] The position is equal.} 10. Bxd5 {[%emt 0:02:27]} O-O {[%emt 0:10:58]} 11. Bg2 {[%emt 0:07:28]} Be6 {[%emt 0:21:22]} 12. Nc3 {[%emt 0:12:30] Prevents d5.} Rb8 {[%emt 0:00:48]} 13. O-O {[%emt 0:00:54]} f5 {[%emt 0:06:32]} 14. Nd5 {[%emt 0:11:33]} Ne7 {[%emt 0:03:16]} 15. Bd2 {[%emt 0:02:19]} Nxd5 {[%emt 0:02:13]} 16. cxd5 {[%emt 0:01:47]} Bd7 {[%emt 0:00:38]} 17. a4 {[%emt 0:01:09]} b5 {[%emt 0:02:58]} 18. axb5 {[%emt 0:03:34]} Rxb5 {[%emt 0:00:47]} (18... a4 $5 {[%cal Rd7b5]}) 19. Bc3 {[%emt 0:01:22]} Qc7 {[%emt 0:00:54]} 20. Qd2 {[%emt 0:02:04][%cal Rc3a5]} Ra8 {[%emt 0:00:19]} 21. Rfc1 {[%emt 0:02:49]} a4 {[%emt 0:02:00]} 22. d4 {[%emt 0:01:42]} cxd4 {[%emt 0:01:41]} (22... exd4 {keeps more tension.} 23. exd4 cxd4 24. Bxd4 Qa5) 23. Bxd4 {[%emt 0:00:39]} Qb7 {[%emt 0:00:31]} 24. Bc3 {[%emt 0:00:45]} Be8 {[%emt 0:04:06]} 25. Bf1 {[%emt 0:01:33]} Rb6 {[%emt 0:00:26]} 26. Bc4 {[%emt 0:03:56]} Rc8 {[%emt 0:00:55]} 27. Be2 {[%emt 0:05:55]} Rc5 {[%emt 0:03:34]} 28. Rd1 {[%emt 0:01:04]} e4 {[%emt 0:02:22]} 29. Bxg7 {[%emt 0:02:27]} Qxg7 {[%emt 0:00:15]} 30. Rdb1 {[%emt 0:01:36]} Qe5 {[%emt 0:02:17]} 31. Bd1 {[%emt 0:01:27]} Rxd5 {[%emt 0:00:42]} 32. Qe2 {[%emt 0:00:46]} ({White should try} 32. Qe1 $15) 32... Bb5 $17 {[%emt 0:01:24] 0x0.0020ae855cf3dp-1022s more active pieces.} 33. Qe1 {[%emt 0:00:42]} Ra6 {[%emt 0:05:16] Inhibits Qa5.} ({Better is} 33... Bd3 $17 34. Rc1 Qxb2 35. Bxa4 (35. Rc8+ $2 Kg7 $19) 35... Rc5) 34. b3 {[%emt 0:02:23]} (34. Qb4 $11) 34... Bd3 {[%emt 0:00:58]} (34... a3 $17 {Strongly threatening ...a2.} 35. Ra2 Ra8) 35. Rc1 {[%emt 0:01:04]} (35. Be2 $1 $11 {remains equal.}) 35... Rc5 {[%emt 0:02:22]} (35... a3 $17 {And now ...Rc5 would win.} 36. b4 Qb2) 36. bxa4 $2 {[%emt 0:00:52] [#]} (36. Rxc5 $11 {and White has nothing to worry.} dxc5 37. Rxa4) 36... Qb2 $36 {[%emt 0:01:15][%mdl 2048] Black is in control.} 37. g4 $2 {[%emt 0:02:25]} (37. Rxc5 {was the crucial defense.} dxc5 38. Rc1) 37... Kg7 {[%emt 0:00:33]} ({Inferior is} 37... Rxc1 38. Rxc1 fxg4 39. Rc8+ Kg7 40. Rc7+ Kg8 41. Rc8+ (41. Bxg4 Rxa4 42. Kg2 Kf8 $17) 41... Kf7 42. Rc7+ Kg8 43. Rc8+ $11 (43. Bxg4 Rxa4 44. Kg2 Kf8 $17)) 38. Rxc5 {[%emt 0:01:11]} dxc5 {[%emt 0:00:22]} 39. Be2 {[%emt 0:00:18]} Qxe2 {[%emt 0:00:39]} 40. Qc3+ {[%emt 0:01:25]} Kh6 {[%emt 0:00:25]} 41. h3 {[%emt 0:31:39]} Qf3 {[%emt 0:30:52]} 42. Qe5 {[%emt 0:01:54]} fxg4 {[%emt 0:00:00]} 43. h4 {[%emt 0:00:00]} Qf6 {[%emt 0:00:00]} 44. Qe8 {[%emt 0:00:00]} Qxa1+ {[%emt 0:00:00]} 45. Kh2 {[%emt 0:00:00]} Rf6 {[%emt 0:00:00] Weighted Error Value: White=0.94/Black=0.28 (precise)} 0-1

[Event "44th Chess Olympiad Open 2022"]
[Site "Chennai"]
[Date "2022.07.30"]
[Round "2.62"]
[White "Gong Thon Gong"]
[Black "Gontcharov, Serguei"]
[Result "1-0"]
[ECO "D02"]
[WhiteElo "2176"]
[BlackElo "1864"]
[Annotator "TA"]
[PlyCount "45"]
[EventDate "2022.07.29"]
[EventType "team-tourn"]
[EventCountry "IND"]
[SourceTitle "playchess.com"]
[Source "ChessBase"]
[SourceQuality "1"]
[WhiteTeam "SSD"]
[BlackTeam "Bermuda"]
[BlackTeamCountry "BER"]
[TimeControl "40/5400+30:1800+30"]

{[%evp 10,45,29,-9,29,26,29,25,66,56,71,59,54,54,87,64,64,75,80,68,197,162,186,133,185,137,120,136,130,116,360,385,372,356,1058,1050,1253,1217]} 1. d4 {[%emt 0:00:07]} Nf6 {[%emt 0:00:17]} 2. Nf3 {[%emt 0:00:15]} d5 {[%emt 0:01:01]} 3. g3 {[%emt 0:00:03]} c5 {[%emt 0:01:46]} 4. Bg2 {[%emt 0:00:04]} Nc6 {[%emt 0:00:14]} 5. O-O {[%emt 0:00:12]} e6 {[%emt 0:00:38]} 6. a3 {[%emt 0:00:07]} h6 {[%emt 0:01:55] D02: 1 d4 d5 2 Nf3 sidelines, including 2...Nf6 3 g3 and 2...Nf6 3 Bf4.} 7. dxc5 {[%emt 0:01:11]} Bxc5 {[%emt 0:00:14]} 8. b4 {[%emt 0:00:11] [#]} Bd6 $146 {[%emt 0:01:00] White has an edge.} ({Predecessor:} 8... Be7 9. Bb2 O-O 10. Nbd2 b5 11. a4 Qb6 12. axb5 Qxb5 13. c4 dxc4 14. Qa4 Rb8 15. Qxb5 Rxb5 16. Nxc4 Bxb4 {½-½ (22) Fluvia Poyatos,J (2470)-Perez Mitjans,O (2477) Catalunya 2012}) 9. Nbd2 {[%emt 0:00:11]} O-O {[%emt 0:03:26]} 10. Bb2 {[%emt 0:00:26]} Re8 {[%emt 0:00:38]} 11. c4 {[%emt 0:00:15]} Be7 {[%emt 0:09:04]} 12. Qc2 {[%emt 0:00:28]} Bd7 {[%emt 0:06:57]} 13. Rfd1 {[%emt 0:00:37]} Rc8 {[%emt 0:00:54]} 14. Rac1 {[%emt 0:01:28]} a5 {[%emt 0:01:07]} (14... Bf8 $14) 15. b5 $18 {[%emt 0:00:08]} Nb8 {[%emt 0:00:19]} 16. Qb3 {[%emt 0:00:19]} ({Better is} 16. a4 $18) 16... Qb6 {[%emt 0:03:44] [#]} (16... a4 $16 {keeps fighting.} 17. Qxa4 Na6) 17. Ne5 {[%emt 0:00:39]} (17. a4 $1 $18) 17... dxc4 $16 {[%emt 0:05:37]} 18. Nxd7 {[%emt 0:00:23] White is more active.} ({Much less strong is} 18. Rxc4 Qxb5 19. Rxc8 (19. Bxb7 Rxc4 20. Nexc4 a4 $14) 19... Rxc8 $14) 18... Nbxd7 {[%emt 0:00:36]} 19. Nxc4 {[%emt 0:00:18]} Rxc4 {[%emt 0:17:36]} 20. Qxc4 $18 {[%emt 0:00:14] And now Bd4 would win.} ({Resist} 20. Rxc4 Nc5 21. Qc2 Qc7 $18) 20... Bc5 {[%emt 0:05:12]} 21. e3 {[%emt 0:00:41] [#] Threatens to win with Bxf6.} h5 $2 {[%emt 0:13:53]} (21... Rc8 22. h4 Qc7) 22. Bxf6 {[%emt 0:00:40]} gxf6 {[%emt 0:00:09]} 23. Rxd7 {[%emt 0:00:41] Weighted Error Value: White=0.13 (very precise) /Black=0.53} 1-0

[Event "44th Chess Olympiad Open 2022"]
[Site "Chennai"]
[Date "2022.07.30"]
[Round "2.62"]
[White "Rehan, Deng Cypriano"]
[Black "Kovacova, Zuzana"]
[Result "1-0"]
[ECO "A25"]
[WhiteElo "2105"]
[BlackElo "2050"]
[Annotator "TA"]
[PlyCount "77"]
[EventDate "2022.07.29"]
[EventType "team-tourn"]
[EventCountry "IND"]
[SourceTitle "playchess.com"]
[Source "ChessBase"]
[SourceQuality "1"]
[WhiteTeam "SSD"]
[BlackTeam "Bermuda"]
[BlackTeamCountry "BER"]
[TimeControl "40/5400+30:1800+30"]

{[%evp 9,77,16,47,43,58,47,51,60,59,44,64,41,47,29,47,20,51,22,37,14,8,-19,-20,-33,-44,-57,-27,-22,0,0,0,-21,0,0,43,0,46,35,81,87,240,24,34,58,422,280,561,555,537,541,522,520,680,661,689,683,670,679,723,577,716,723,719,718,716,712,710,710,679,675]} 1. c4 {[%emt 0:00:16]} e5 {[%emt 0:00:13]} 2. g3 {[%emt 0:00:11]} Nc6 {[%emt 0:00:07]} 3. Bg2 {[%emt 0:00:10]} d6 {[%emt 0:00:12]} 4. Nc3 {[%emt 0:00:21]} Be6 {[%emt 0:00:23]} 5. d3 {[%emt 0:01:52][%cal Bd2d3,Bd3d4,Bd4d5][%mdl 32]} g6 {[%emt 0:01:51]} 6. Nf3 {[%emt 0:00:57] A25: English Opening vs King's Indian with ...Nc6 but without early d3.} h6 {[%emt 0:01:44]} 7. d4 {[%emt 0:12:08] Strongly threatening d5.} Bd7 {[%emt 0:02:38] [#]} 8. d5 $146 {[%emt 0:08:19] White is slightly better.} ({Predecessor:} 8. Be3 Bg7 9. Qd2 f5 10. dxe5 dxe5 11. Rd1 e4 12. Nd4 Ne5 13. b3 Ne7 14. O-O {1-0 (25) Predke,A (2361)-Balaian,A (2148) St Petersburg 2009}) 8... Nce7 {[%emt 0:01:01]} 9. c5 {[%emt 0:00:56]} Bg7 {[%emt 0:02:55]} 10. cxd6 {[%emt 0:01:36]} cxd6 {[%emt 0:00:04]} 11. Qb3 {[%emt 0:01:07]} Qb8 {[%emt 0:08:51]} 12. e4 {[%emt 0:01:20]} f5 {[%emt 0:01:39]} 13. O-O {[%emt 0:01:57]} Nf6 {[%emt 0:01:10]} 14. Nd2 {[%emt 0:01:25]} b5 {[%emt 0:10:09] Inhibits Nc4.} 15. a3 {[%emt 0:05:31]} O-O {[%emt 0:05:31][%cal Be8g8,Bg8h8,Bh8h7][%mdl 32]} 16. exf5 {[%emt 0:03:49]} gxf5 {[%emt 0:00:38]} 17. Nf3 {[%emt 0:00:36][%cal Of3e5]} Kh8 {[%emt 0:04:20]} 18. Nh4 {[%emt 0:01:04]} Qe8 {[%emt 0:16:29]} 19. Bd2 {[%emt 0:07:44]} a5 {[%emt 0:10:14]} 20. Rfe1 {[%emt 0:05:32]} Kh7 {[%emt 0:16:16]} 21. Rac1 {[%emt 0:04:54]} Qb8 {[%emt 0:04:13]} 22. Ne2 {[%emt 0:02:33][%cal Oe2d4]} Rc8 {[%emt 0:03:29]} (22... Rf7 $11) 23. Nd4 {[%emt 0:03:29] Hoping for Nc6.} a4 {[%emt 0:03:46] [#]} (23... Rxc1 $14 {is more appropriate.} 24. Bxc1 a4) 24. Qd1 $1 $16 {[%emt 0:03:11] Threatens to win with Nc6. 0x0.0002da529db6dp-1022s more active pieces.} e4 $2 {[%emt 0:00:58]} (24... Rxc1 $16 25. Bxc1 Qc8) 25. Ne6 $2 {[%emt 0:01:50]} ({White has to play} 25. Nc6 $1 $18 {[%cal Rc6b8]} Bxc6 26. dxc6) 25... Rxc1 $11 {[%emt 0:01:31]} 26. Bxc1 {[%emt 0:00:27] Bh3 is the strong threat.} Bh8 $2 {[%emt 0:00:23][%mdl 8192]} (26... Nfxd5 $2 {[#]} 27. Nxf5 $1 {[%mdl 512]} Bxe6 28. Nxe7 Nxe7 29. Bxe4+ Kh8 30. Bxa8 $18) ({Better is} 26... Bxe6 $14 27. dxe6 d5) 27. Qd2 {[%emt 0:00:47]} Nfg8 {[%emt 0:01:35] [#]} (27... Bg7 {was necessary.} 28. Bh3 Bxe6) 28. Nxf5 $1 $18 {[%emt 0:01:11][%mdl 512] White is clearly winning.} Nxf5 {[%emt 0:00:20]} 29. Bxe4 {[%emt 0:00:15][%cal Re4f5]} Bxe6 {[%emt 0:00:17]} 30. dxe6 {[%emt 0:01:28]} Qf8 {[%emt 0:00:22]} 31. Qd5 {[%emt 0:01:27]} Nge7 {[%emt 0:01:15]} 32. Qxa8 {[%emt 0:00:28]} Qxa8 {[%emt 0:00:20]} 33. Bxa8 {[%emt 0:00:11] This bishop pair is nice.} d5 {[%emt 0:00:42] Inhibits Be4.} 34. Rd1 {[%emt 0:00:51]} Nd4 {[%emt 0:00:29]} 35. Be3 {[%emt 0:01:42]} Nxe6 {[%emt 0:00:43]} 36. Bxd5 {[%emt 0:00:23]} Nxd5 {[%emt 0:00:42]} 37. Rxd5 {[%emt 0:00:09]} Bxb2 {[%emt 0:00:02]} 38. Rxb5 {[%emt 0:00:17]} Bxa3 {[%emt 0:00:13]} 39. Ra5 {[%emt 0:00:21] Weighted Error Value: White=0.28 (precise) /Black=0.62} 1-0

[Event "44th Chess Olympiad Open 2022"]
[Site "Chennai"]
[Date "2022.07.30"]
[Round "2.62"]
[White "Faulks, Nick"]
[Black "Ajak Mach Duany"]
[Result "0-1"]
[ECO "A21"]
[WhiteElo "1820"]
[BlackElo "2029"]
[Annotator "TA"]
[PlyCount "90"]
[EventDate "2022.07.29"]
[EventType "team-tourn"]
[EventCountry "IND"]
[SourceTitle "playchess.com"]
[Source "ChessBase"]
[SourceQuality "1"]
[WhiteTeam "Bermuda"]
[BlackTeam "SSD"]
[WhiteTeamCountry "BER"]
[TimeControl "40/5400+30:1800+30"]

{[%evp 9,90,9,24,-61,2,12,24,0,8,-12,78,74,212,212,205,213,214,211,215,217,191,119,131,100,88,37,31,28,40,48,41,40,39,37,91,39,37,34,60,60,59,10,10,-262,-225,-463,-65,-65,-54,-112,-105,-175,-175,-175,-175,-175,-175,-175,-175,-175,-175,-175,-175,-175,-175,-175,-122,-175,-175,-175,-175,-175,-175,-164,-164,-164,-42,-42,-42,-41,-43,-5527,-918]} 1. c4 {[%emt 0:00:06]} e5 {[%emt 0:00:55]} 2. Nc3 {[%emt 0:00:11]} f5 {[%emt 0:01:29]} 3. e3 {[%emt 0:02:43]} Nf6 {[%emt 0:03:27]} 4. g3 {[%emt 0:00:44]} Nc6 {[%emt 0:01:42]} 5. a3 {[%emt 0:04:22]} e4 {[%emt 0:05:24] [#]} 6. f4 $146 {[%emt 0:06:55] A21: English Opening: 1...e5 2 Nc3.} (6. d4 $11) ({Predecessor:} 6. d4 g6 7. b4 Bg7 8. Qb3 d6 9. Nh3 Ne7 10. Bb2 h6 11. Nf4 g5 12. Ng2 Be6 13. h4 c6 14. hxg5 hxg5 15. Rxh8+ Bxh8 16. Be2 d5 17. c5 Ng6 18. b5 {½-½ (18) Dimitrijevic,S (1993)-Maric,D (2221) Belgrade 2012}) 6... a5 {[%emt 0:10:30]} (6... d5 $15 7. cxd5 Nxd5) 7. Nh3 $11 {[%emt 0:15:51]} Bc5 {[%emt 0:01:19]} 8. b3 {[%emt 0:05:11] White has an edge.} Ne7 {[%emt 0:04:10]} 9. Bb2 {[%emt 0:02:10][%cal Oc3e4]} (9. d4 $5 {[%cal Rd4c5]} Ba7 10. Be2 $11) 9... Ng6 {[%emt 0:05:48]} (9... O-O $11 {remains equal.}) 10. Nd5 $16 {[%emt 0:06:46]} Nxd5 {[%emt 0:03:11]} (10... Be7 $16) 11. cxd5 $18 {[%emt 0:00:15]} Qe7 {[%emt 0:00:44]} 12. Qh5 {[%emt 0:05:12]} Qf8 {[%emt 0:11:02]} 13. Ng5 {[%emt 0:03:19] [#] Black must now prevent d6.} Be7 {[%emt 0:05:28]} 14. Nxh7 {[%emt 0:06:40]} Qf7 {[%emt 0:00:28]} 15. d6 {[%emt 0:01:28]} ({Better is} 15. Rc1 $18) 15... cxd6 $16 {[%emt 0:03:37]} 16. Bc4 {[%emt 0:00:28]} d5 {[%emt 0:02:55]} 17. Bxd5 {[%emt 0:00:21]} Qxd5 $14 {[%emt 0:00:11]} 18. Qxg6+ {[%emt 0:00:08]} Qf7 {[%emt 0:02:21]} 19. Qxf7+ {[%emt 0:00:34]} Kxf7 {[%emt 0:00:09]} 20. Ng5+ {[%emt 0:00:07]} Kg6 {[%emt 0:01:55]} 21. h4 {[%emt 0:01:12]} Ra6 {[%emt 0:04:19]} (21... b5 $1 $14) 22. Bc3 {[%emt 0:04:51]} ({White should play} 22. Kf2 $16) 22... b5 {[%emt 0:02:16]} 23. Kf2 {[%emt 0:01:35]} b4 {[%emt 0:01:35]} 24. axb4 {[%emt 0:00:56]} axb4 {[%emt 0:00:14]} 25. Rxa6+ {[%emt 0:13:46]} (25. Be5 $14 {was preferrable.}) 25... Bxa6 $11 {[%emt 0:00:12]} 26. h5+ $2 {[%emt 0:00:31][%mdl 8192]} (26. Bd4 $11 {and White stays safe.}) 26... Rxh5 $19 {[%emt 0:00:45]} 27. Rxh5 {[%emt 0:00:08]} (27. Ra1 {was the only chance.} Bd3 28. Bd4) 27... Kxh5 $2 {[%emt 0:00:07]} (27... bxc3 $19 28. Rh1 c2) 28. Bxg7 {[%emt 0:00:20][%mdl 4096] Endgame KBB-KBN} Bd3 {[%emt 0:00:50][%cal Ba6d3,Bd3c2,Bc2b3][%mdl 32]} 29. Bd4 {[%emt 0:01:04] [#]} (29. Nh7 $1 $15) 29... Bc2 $1 $17 {[%emt 0:02:32]} 30. Nf7 {[%emt 0:00:12]} (30. Ke2 $17 {might work better.}) 30... Bxb3 {[%emt 0:00:44]} 31. Ne5 {[%emt 0:00:04]} Ba4 {[%emt 0:01:20]} 32. Nc4 {[%emt 0:02:53]} Bb5 {[%emt 0:00:45] A strong pair of Bishops.} 33. Nb2 {[%emt 0:00:20]} d5 {[%emt 0:03:09]} 34. Be5 {[%emt 0:02:18]} Kg6 {[%emt 0:00:27]} 35. Ke1 {[%emt 0:01:24]} b3 {[%emt 0:06:25]} 36. Bc3 {[%emt 0:01:05]} Bc5 {[%emt 0:02:51]} 37. Nd1 {[%emt 0:02:06]} Kf7 {[%emt 0:00:40]} (37... Kh5 $19 38. Bb2 Kg4) 38. Nb2 {[%emt 0:00:21]} (38. Bb2 $17 {is a better defense.}) 38... Ke7 $19 {[%emt 0:00:44]} 39. Nd1 {[%emt 0:01:09]} Kd6 {[%emt 0:00:24]} 40. Nb2 {[%emt 0:00:28]} Bb6 {[%emt 0:00:18]} 41. Bb4+ {[%emt 0:31:00]} Kc6 {[%emt 0:30:17] aiming for ...d4.} 42. Bc3 {[%emt 0:02:49]} d4 {[%emt 0:00:38]} (42... Bc5 $19 {...Kb6 is the strong threat.} 43. Nd1 Ba6) 43. exd4 $15 {[%emt 0:01:44]} Kd5 {[%emt 0:00:15]} 44. Nd1 {[%emt 0:00:00]} Bxd4 {[%emt 0:00:00]} 45. Nb2 $2 {[%emt 0:00:00][%mdl 8192]} (45. Ne3+ $15 Kc5 46. Kd1) 45... e3 {[%emt 0:00:00] What a bad dream for White.  Weighted Error Value: White=0.46/Black=0.38} (45... Bxc3 $142 46. dxc3 e3) 0-1

[Event "44th Chess Olympiad Open 2022"]
[Site "Chennai"]
[Date "2022.07.30"]
[Round "2.62"]
[White "Gontcharov, Dimitri"]
[Black "Peter Majur Manyang"]
[Result "0-1"]
[ECO "B77"]
[WhiteElo "1448"]
[BlackElo "2095"]
[Annotator "TA"]
[PlyCount "43"]
[EventDate "2022.07.29"]
[EventType "team-tourn"]
[EventCountry "IND"]
[SourceTitle "playchess.com"]
[Source "ChessBase"]
[SourceQuality "1"]
[WhiteTeam "Bermuda"]
[BlackTeam "SSD"]
[WhiteTeamCountry "BER"]
[TimeControl "40/5400+30:1800+30"]

{[%evp 17,43,51,61,19,34,-9,16,-13,-14,-13,0,0,6,0,8,13,0,-75,106,78,162,61,120,129,114,10,9,-69]} 1. e4 {[%emt 0:00:01]} c5 {[%emt 0:00:08]} 2. Nf3 {[%emt 0:00:06]} a6 {[%emt 0:00:32]} 3. d4 {[%emt 0:00:13]} cxd4 {[%emt 0:00:15]} 4. Nxd4 {[%emt 0:00:17]} g6 {[%emt 0:00:03]} 5. Nc3 {[%emt 0:00:38]} Bg7 {[%emt 0:00:15]} 6. Be3 {[%emt 0:00:41]} d6 {[%emt 0:03:40]} 7. Qd2 {[%emt 0:03:29]} Nc6 {[%emt 0:00:00]} 8. Bc4 {[%emt 0:06:20]} Nf6 {[%emt 0:00:00]} 9. f3 {[%emt 0:00:30]} O-O {[%emt 0:00:00]} 10. a3 {[%emt 0:00:30] B77: Sicilian Dragon: Yugoslav Attack, 9 Bc4 sidelines.} Qc7 {[%emt 0:00:00] [#] Hoping for ...Nxd4.} 11. Be2 $146 {[%emt 0:10:32]} ({Predecessor:} 11. g4 Nxd4 12. Qxd4 Nxg4 13. Nd5 Bxd4 14. Nxc7 Nxe3 15. Nxa8 Nxc4 16. c3 Be5 17. Nc7 {0-1 (35) Chavez,P (1518)-Lemus Pena,M (1805) Montevideo 2017}) 11... b5 {[%emt 0:04:33]} 12. g4 {[%emt 0:23:09] And now g5 would win.} Bb7 {[%emt 0:00:47]} 13. h4 {[%emt 0:04:40]} Nxd4 {[%emt 0:00:11]} 14. Bxd4 {[%emt 0:00:30]} e5 {[%emt 0:00:30]} 15. Be3 {[%emt 0:00:30]} d5 {[%emt 0:00:30]} 16. exd5 {[%emt 0:00:30] With the idea 0-0-0.} ({Reject} 16. Nxd5 Nxd5 17. exd5 Rad8 $17) 16... Rfd8 {[%emt 0:00:30][%cal Rf6d5]} 17. O-O-O {[%emt 0:00:30]} (17. Bg5 $11) 17... Qa5 $2 {[%emt 0:00:30]} (17... Nxd5 $1 $17 {[%cal Oe5e4] Threatens to win with ...e4!} 18. Nxd5 Bxd5) 18. Bg5 {[%emt 0:00:30]} b4 {[%emt 0:00:30]} (18... Rac8 $16) 19. Na2 {[%emt 0:00:30]} ({White must play} 19. Ne4 $18 Rxd5 20. Qxb4 (20. Nxf6+ Bxf6 21. Qxb4 Bxg5+ 22. hxg5 Qc7 $16) 20... Qxb4 21. Nxf6+ (21. axb4 Rxd1+ 22. Rxd1 Nxe4 $16) 21... Bxf6 22. axb4 Bxg5+ 23. hxg5) 19... Bxd5 {[%emt 0:00:30]} (19... Rxd5 $14 20. Qxb4 Qc7) 20. Qxb4 $16 {[%emt 0:00:30]} Qc7 {[%emt 0:00:30] [#]} 21. Nc3 {[%emt 0:00:30]} (21. Qc3 $1 $16 {[%cal Rc3c7]} Qb6 22. Nb4) 21... Rab8 $11 {[%emt 0:00:30] [#]} 22. Nxd5 {[%emt 0:00:30] Weighted Error Value: White=0.47/Black=0.40} ({White should try} 22. Bxf6 $1 $11 Bxf6 23. Nxd5 Rxd5 24. Qe4 (24. Rxd5 Rxb4 25. axb4 e4 $11) 24... Rxd1+ 25. Rxd1) 0-1